bitfinex/quotes_SOLUSD_20250508
["timestamp","ask_amount","ask_price","bid_price","bid_amount"]
[1746694783213,4.88458374,152.94,152.93,11.28142074]
[1746694784321,11.42309557,152.94,152.93,11.28142074]
[1746694785323,4.88458374,152.94,152.93,11.28142074]
[1746694787351,4.88458374,152.94,152.91,26.0]
[1746694787496,4.88458374,152.94,152.93,11.28142074]
[1746694792737,6.53680219,152.98,152.93,11.28142074]
[1746694792937,6.53680219,152.98,152.94,11.28142074]
[1746694794014,6.53680219,152.98,152.95,11.28142074]
[1746694794551,4.88572189,152.97,152.95,11.28142074]
[1746694794913,6.5376569,152.96,152.95,11.28142074]
[1746694795334,11.42337879,152.96,152.95,11.28142074]
[1746694796034,11.42337879,152.96,152.91,43.82118791]
[1746694796243,11.42337879,152.96,152.93,11.28142074]
[1746694796552,4.88572189,152.95,152.92,11.28142074]
[1746694796730,4.88572189,152.95,152.91,37.28142074]
[1746694797048,6.53851183,152.94,152.91,11.28142074]
[1746694797710,4.88572189,152.93,152.92,11.28142074]
[1746694800222,11.42466127,152.93,152.91,26.0]
[1746694800424,4.88572189,152.93,152.92,11.28142074]
[1746694801323,6.53708004,152.98,152.92,36.47043658]
[1746694801528,6.53708004,152.98,152.97,11.28142074]
[1746694801845,6.53552055,153.01,152.97,11.28142074]
[1746694802220,6.53552055,153.01,152.99,11.28142074]
[1746694802421,6.53552055,153.01,153.0,11.28142074]
[1746694803020,22.87141093,153.03,153.0,11.28142074]
[1746694803922,22.87141093,153.03,153.01,11.28142074]
[1746694804140,6.5346664,153.03,153.02,11.28142074]
[1746694805127,6.53423941,153.04,153.02,11.28142074]
[1746694805636,6.53423941,153.04,153.03,11.28142074]
[1746694806347,6.53423941,153.04,152.98,26.0]
[1746694806941,6.53423941,153.04,153.01,11.28142074]
[1746694808654,6.53423941,153.04,153.02,11.28142074]
[1746694809142,6.53423941,153.04,153.03,11.28142074]
[1746694809743,6.53423941,153.04,153.0,26.0]
[1746694810043,6.53423941,153.04,153.03,11.28142074]
[1746694810542,6.53423941,153.04,153.02,11.28142074]
[1746694811244,22.8676697,153.06,153.02,11.28142074]
[1746694811547,22.8676697,153.06,153.03,11.28142074]
[1746694812133,22.8676697,153.06,153.04,11.28142074]
[1746694813044,22.8676697,153.06,153.01,26.0]
[1746694813250,22.8676697,153.06,153.03,11.28142074]
[1746694813643,22.8676697,153.06,153.01,26.0]
[1746694813848,22.8676697,153.06,153.03,11.28142074]
[1746694814450,11.28142074,153.05,153.01,11.28142074]
[1746694814947,11.28142074,153.05,152.98,115.3632]
[1746694815133,11.28142074,153.04,152.99,11.28142074]
[1746694815450,34.15424781,153.02,152.97,11.28142074]
[1746694815631,34.15424781,153.02,152.98,11.28142074]
[1746694816033,22.87282707,153.02,152.99,11.28142074]
[1746694816240,6.53509345,153.02,153.0,11.28142074]
[1746694816641,6.53509345,153.02,152.96,26.0]
[1746694816839,6.53509345,153.02,153.0,11.28142074]
[1746694817455,6.53423941,153.04,153.0,11.28142074]
[1746694818146,6.53423941,153.04,153.01,11.28142074]
[1746694818364,6.53423941,153.04,153.02,11.28142074]
[1746694819958,22.8691984,153.05,153.02,11.28142074]
[1746694820660,6.53381247,153.05,153.03,11.28142074]
[1746694821943,6.5333856,153.06,153.03,11.28142074]
[1746694822763,22.8668496,153.06,153.0,26.0]
[1746694822939,22.8668496,153.06,153.02,11.28142074]
[1746694823344,22.8668496,153.06,153.03,11.28142074]
[1746694826959,22.8668496,153.06,153.0,26.0]
[1746694827154,22.8668496,153.06,153.02,11.28142074]
[1746694827337,22.8668496,153.06,153.03,11.28142074]
[1746694829259,22.8668496,153.06,153.04,11.28142074]
[1746694830547,22.8668496,153.06,153.03,11.28142074]
[1746694831558,34.14827034,153.06,152.98,134.4447]
[1746694831738,11.28142074,153.05,153.01,11.28142074]
[1746694832059,11.28142074,153.04,152.99,11.28142074]
[1746694833867,6.5346664,153.03,153.0,11.28142074]
[1746694834438,6.5346664,153.03,153.01,11.28142074]
[1746694835562,6.5346664,153.03,152.96,76.0]
[1746694835754,22.87047913,153.04,153.0,11.28142074]
[1746694836168,22.87047913,153.04,152.96,76.0]
[1746694836372,22.87047913,153.04,153.0,11.28142074]
[1746694837647,34.15189987,153.04,153.0,11.28142074]
[1746694838564,34.15189987,153.04,152.96,76.0]
[1746694838770,34.15189987,153.04,153.0,11.28142074]
[1746694839262,34.15189987,153.04,152.99,11.28142074]
[1746694839561,11.28142074,153.03,152.98,11.28142074]
[1746694839767,34.15189987,153.04,152.99,11.28142074]
[1746694840748,11.28142074,153.03,152.96,76.0]
[1746694841051,11.28142074,153.03,152.99,11.28142074]
[1746694841248,41.51649846,153.06,152.99,11.28142074]
[1746694841664,11.28142074,153.04,152.99,11.28142074]
[1746694841849,11.28142074,153.04,153.0,11.28142074]
[1746694842364,41.51649846,153.06,153.01,11.28142074]
[1746694842564,52.7979192,153.06,153.02,11.28142074]
[1746694842767,11.28142074,153.05,153.01,11.28142074]
[1746694842963,11.28142074,153.05,152.96,76.0]
[1746694842964,11.28142074,153.05,153.0,11.28142074]
[1746694843348,22.86983794,153.04,152.96,76.0]
[1746694843569,22.86983794,153.04,153.0,11.28142074]
[1746694846572,34.15125868,153.04,152.99,11.28142074]
[1746694848876,11.28142074,153.03,152.96,26.0]
[1746694849174,11.28142074,153.01,152.96,37.28142074]
[1746694849569,11.28142074,153.01,152.94,8.1448]
[1746694849773,11.28142074,153.0,152.95,37.28142074]
[1746694849958,11.28142074,153.0,152.95,11.28142074]
[1746694850272,11.28142074,153.0,152.92,26.0]
[1746694850471,6.53637492,152.99,152.95,11.28142074]
[1746694850775,6.53637492,152.99,152.96,11.28142074]
[1746694851578,6.53637492,152.99,152.92,26.0]
[1746694851955,6.53637492,152.99,152.96,11.28142074]
[1746694852985,11.28142074,152.98,152.92,26.0]
[1746694853188,11.28142074,152.97,152.93,37.28142074]
[1746694853556,11.28142074,152.98,152.93,37.28142074]
[1746694853860,11.28142074,152.98,152.93,26.0]
[1746694854062,11.28142074,152.98,152.93,37.28142074]
[1746694854250,6.53722952,152.97,152.94,11.28142074]
[1746694854981,6.53722952,152.97,152.93,26.0]
[1746694855172,6.53722952,152.97,152.9,26.0]
[1746694855173,34.16172406,152.97,152.9,26.0]
[1746694855482,11.28142074,152.96,152.91,37.28142074]
[1746694855857,11.28142074,152.95,152.91,37.28142074]
[1746694856257,6.53851183,152.94,152.91,37.28142074]
[1746694856670,6.53851183,152.94,152.91,26.0]
[1746694856875,6.53851183,152.94,152.91,37.28142074]
[1746694857483,6.53851183,152.94,152.86,151.09746036]
[1746694857484,6.53851183,152.94,152.9,11.28142074]
[1746694857669,17.81993257,152.94,152.9,11.28142074]
[1746694857989,17.81993257,152.94,152.86,151.09746036]
[1746694857990,22.88479141,152.94,152.86,151.09746036]
[1746694858172,11.28142074,152.93,152.89,11.28142074]
[1746694858882,34.16621215,152.94,152.89,11.28142074]
[1746694859377,11.28142074,152.93,152.86,94.29746036]
[1746694859583,11.28142074,152.93,152.88,11.28142074]
[1746694859763,11.28142074,152.93,152.86,94.29746036]
[1746694859966,11.28142074,152.93,152.88,11.28142074]
[1746694860264,6.53936698,152.92,152.89,11.28142074]
[1746694860866,6.53936698,152.92,152.88,11.28142074]
[1746694861072,22.88778445,152.92,152.88,11.28142074]
[1746694861959,22.88778445,152.92,152.86,36.19276036]
[1746694862163,22.88778445,152.92,152.88,11.28142074]
[1746694862564,22.88778445,152.92,152.89,11.28142074]
[1746694863082,22.88778445,152.92,152.88,11.28142074]
[1746694863590,22.88778445,152.92,152.89,11.28142074]
[1746694864782,18.64964886,152.94,152.86,36.19276036]
[1746694864980,11.28142074,152.93,152.86,36.19276036]
[1746694865180,11.28142074,152.93,152.88,11.28142074]
[1746694865563,11.28142074,152.91,152.86,10.19276036]
[1746694865789,11.28142074,152.91,152.86,21.4741811]
[1746694866490,11.28142074,152.9,152.86,10.19276036]
[1746694866788,6.54065014,152.89,152.86,10.19276036]
[1746694867085,6.54065014,152.89,152.86,21.4741811]
[1746694867879,6.54065014,152.89,152.88,11.28142074]
[1746694869088,6.53936698,152.92,152.88,11.28142074]
[1746694869294,6.53936698,152.92,152.89,11.28142074]
[1746694869785,22.88778445,152.92,152.88,11.28142074]
[1746694870993,34.16920519,152.92,152.88,11.28142074]
[1746694871289,11.28142074,152.91,152.87,11.28142074]
[1746694871593,11.28142074,152.9,152.85,37.28142074]
[1746694872478,11.28142074,152.9,152.85,11.28142074]
[1746694873090,34.17369623,152.89,152.82,1.6017]
[1746694873283,34.17369623,152.89,152.84,11.28142074]
[1746694874185,34.17369623,152.89,152.83,26.0]
[1746694874699,11.28142074,152.88,152.84,11.28142074]
[1746694875291,6.54150585,152.87,152.84,11.28142074]
[1746694875594,6.54150585,152.87,152.85,11.28142074]
[1746694876098,6.54150585,152.87,152.83,26.0]
[1746694876298,22.89527048,152.87,152.79,6.6034]
[1746694876588,18.64964886,152.86,152.78,1.5902]
[1746694876896,29.9310696,152.86,152.81,11.28142074]
[1746694877285,34.17968701,152.85,152.81,11.28142074]
[1746694877789,34.17968701,152.85,152.78,1.5902]
[1746694877993,34.17968701,152.85,152.8,11.28142074]
[1746694878191,34.17968701,152.85,152.78,1.5902]
[1746694878399,11.28142074,152.84,152.8,11.28142074]
[1746694878609,34.17968701,152.85,152.8,11.28142074]
[1746694878896,6.54236179,152.85,152.83,11.28142074]
[1746694879296,6.54150585,152.87,152.83,11.28142074]
[1746694879676,6.54150585,152.87,152.84,11.28142074]
[1746694880298,6.54150585,152.87,152.85,11.28142074]
[1746694880603,6.54150585,152.87,152.84,11.28142074]
[1746694881280,6.54150585,152.87,152.83,11.28142074]
[1746694881971,22.89527048,152.87,152.79,26.0]
[1746694882175,34.17669122,152.87,152.83,11.28142074]
[1746694882476,22.89527048,152.87,152.83,11.28142074]
[1746694882694,22.89527048,152.87,152.81,26.0]
[1746694882897,22.89527048,152.87,152.83,11.28142074]
[1746694885096,34.17669122,152.87,152.82,11.28142074]
[1746694885296,11.28142074,152.86,152.79,26.0]
[1746694885500,11.28142074,152.84,152.8,37.28142074]
[1746694885906,11.28142074,152.85,152.8,37.28142074]
[1746694886103,22.89527048,152.87,152.8,26.0]
[1746694886301,11.28142074,152.84,152.78,1.5902]
[1746694886596,0.13160793,152.81,152.79,11.28142074]
[1746694886805,0.13160793,152.81,152.78,1.5902]
[1746694887207,6.67572457,152.81,152.79,11.28142074]
[1746694887405,6.67572457,152.81,152.78,1.5902]
[1746694887604,6.67572457,152.81,152.79,11.28142074]
[1746694887914,6.67572457,152.81,152.78,1.5902]
[1746694888214,6.67572457,152.81,152.8,11.28142074]
[1746694888590,6.67572457,152.81,152.78,1.5902]
[1746694888787,6.67572457,152.81,152.79,11.28142074]
[1746694891006,6.67572457,152.81,152.78,11.28142074]
[1746694891994,6.67572457,152.81,152.8,11.28142074]
[1746694892606,6.67572457,152.81,152.77,26.0]
[1746694892818,0.13160793,152.81,152.8,11.28142074]
[1746694893405,0.13160793,152.81,152.77,26.0]
[1746694893619,6.67568227,152.81,152.8,11.28142074]
[1746694893914,0.13160793,152.81,152.77,32.54577013]
[1746694894090,0.13160793,152.81,152.8,11.28142074]
[1746694896613,6.67572715,152.81,152.8,11.28142074]
[1746694896915,0.13160793,152.81,152.8,11.28142074]
[1746694898716,0.13160793,152.81,152.8,45.34232335]
[1746694898887,0.13160793,152.81,152.8,188.40329295]
[1746694899092,0.14209428,152.82,152.8,188.40329295]
[1746694899093,0.13363592,152.83,152.82,76.0]
[1746694899410,0.13363592,152.83,152.82,98.56284148]
[1746694899614,0.13363592,152.83,152.82,26.0]
[1746694899935,0.13363592,152.83,152.82,37.28142074]
[1746694900099,0.13363592,152.83,152.82,11.28142074]
[1746694900809,6.67715451,152.83,152.8,116.6463]
[1746694900993,6.67715451,152.83,152.82,11.28142074]
[1746694901896,0.13363592,152.83,152.82,11.28142074]
[1746694903709,0.13363592,152.83,152.82,37.28142074]
[1746694903923,0.13363592,152.83,152.82,43.82506685]
[1746694904523,0.13363592,152.83,152.82,37.28142074]
[1746694904722,0.13363592,152.83,152.82,11.28142074]
[1746694906716,0.27349564,152.83,152.82,11.28142074]
[1746694908219,0.13985972,152.83,152.82,11.28142074]
[1746694910017,0.13985972,152.83,152.82,29.10648759]
[1746694910201,0.13985972,152.83,152.82,22.56284148]
[1746694910403,0.13985972,152.83,152.82,11.28142074]
[1746694914427,0.13985972,152.83,152.81,108.8]
[1746694914634,6.68307767,152.83,152.81,108.8]
[1746694914810,6.68307767,152.83,152.82,11.28142074]
[1746694915721,6.68307767,152.83,152.81,108.8]
[1746694915910,6.68307767,152.83,152.82,11.28142074]
[1746694917220,0.13985972,152.83,152.82,11.28142074]
[1746694917910,6.68307767,152.83,152.82,11.28142074]
[1746694918109,6.68307767,152.83,152.81,108.8]
[1746694918527,6.68307767,152.83,152.82,11.28142074]
[1746694918831,0.13985972,152.83,152.82,11.28142074]
[1746694920316,6.68307767,152.83,152.82,11.28142074]
[1746694920724,0.13985972,152.83,152.82,11.28142074]
[1746694928213,6.54150585,152.87,152.82,11.28142074]
[1746694928517,4.89172236,152.86,152.83,11.28142074]
[1746694928933,6.54236179,152.85,152.83,11.28142074]
[1746694929139,6.54236179,152.85,152.84,11.28142074]
[1746694930343,11.43408415,152.85,152.84,11.28142074]
[1746694930644,11.43408415,152.85,152.8,26.0]
[1746694930645,22.71550489,152.85,152.8,26.0]
[1746694930932,27.78998863,152.85,152.81,11.28142074]
[1746694931236,11.43408415,152.85,152.84,11.28142074]
[1746694931629,6.54236179,152.85,152.83,11.28142074]
[1746694932547,29.22657315,152.88,152.83,11.28142074]
[1746694932736,17.94515241,152.88,152.83,11.28142074]
[1746694932921,4.89275225,152.87,152.83,11.28142074]
[1746694933117,4.89275225,152.87,152.84,11.28142074]
[1746694933623,6.54236179,152.85,152.84,11.28142074]
[1746694934746,11.43511404,152.85,152.84,11.28142074]
[1746694935742,11.43511404,152.85,152.83,11.28142074]
[1746694936234,11.43554209,152.84,152.83,11.28142074]
[1746694939438,11.43554209,152.84,152.82,11.28142074]
[1746694939648,11.43554209,152.84,152.8,26.0]
[1746694939946,11.43554209,152.84,152.82,11.28142074]
[1746694940638,4.89275225,152.83,152.82,11.28142074]
[1746694942418,11.4359702,152.83,152.8,26.0]
[1746694942624,11.4359702,152.83,152.81,11.28142074]
[1746694943147,4.89275225,152.82,152.8,26.0]
[1746694943523,4.89275225,152.82,152.8,37.28142074]
[1746694944046,4.89275225,152.81,152.8,37.28142074]
[1746694944433,11.43682659,152.81,152.8,11.28142074]
[1746694946631,11.43682659,152.81,152.77,26.0]
[1746694946830,22.90000856,152.84,152.8,11.28142074]
[1746694947030,22.90000856,152.84,152.77,26.0]
[1746694947231,22.90000856,152.84,152.8,11.28142074]
[1746694947644,34.1814293,152.84,152.77,26.0]
[1746694947942,34.1814293,152.84,152.8,11.28142074]
[1746694948148,4.89792779,152.83,152.77,26.0]
[1746694948449,16.17934853,152.83,152.79,11.28142074]
[1746694948741,4.89792779,152.82,152.77,26.0]
[1746694948949,6.54407434,152.81,152.78,11.28142074]
[1746694949135,6.54407434,152.81,152.79,11.28142074]
[1746694949446,6.54407434,152.81,152.8,11.28142074]
[1746694950045,11.44200213,152.81,152.8,11.28142074]
[1746694950247,4.89792779,152.81,152.8,11.28142074]
[1746694950451,4.89792779,152.81,152.77,6.54575076]
[1746694950745,4.89792779,152.81,152.8,11.28142074]
[1746694951137,6.54236179,152.85,152.8,11.28142074]
[1746694951345,6.54236179,152.85,152.81,11.28142074]
[1746694951729,4.89603572,152.84,152.81,11.28142074]
[1746694952552,4.89603572,152.84,152.8,11.28142074]
[1746694952857,4.89603572,152.83,152.8,11.28142074]
[1746694953228,6.54364611,152.82,152.8,11.28142074]
[1746694953856,4.89603572,152.81,152.79,26.0]
[1746694954039,4.89603572,152.81,152.79,37.28142074]
[1746694954551,4.89603572,152.81,152.8,11.28142074]
[1746694957142,11.44018704,152.81,152.79,26.0]
[1746694957341,11.44018704,152.81,152.79,11.28142074]
[1746694957556,11.44018704,152.81,152.76,132.8]
[1746694957853,4.89603572,152.8,152.78,11.28142074]
[1746694958351,11.44078735,152.8,152.77,11.28142074]
[1746694958553,11.44078735,152.8,152.76,158.8]
[1746694958756,4.89603572,152.79,152.76,158.8]
[1746694959149,4.89603572,152.79,152.77,11.28142074]
[1746694959355,4.89603572,152.79,152.78,11.28142074]
[1746694959555,4.89603572,152.79,152.76,76.0]
[1746694959756,6.54475163,152.8,152.76,76.0]
[1746694960001,6.54407434,152.81,152.78,11.28142074]
[1746694960253,6.54407434,152.81,152.76,76.0]
[1746694960458,4.89407356,152.8,152.77,11.28142074]
[1746694961036,4.89407356,152.79,152.77,11.28142074]
[1746694961661,11.43917092,152.79,152.76,26.0]
[1746694961865,6.54509736,152.79,152.77,11.28142074]
[1746694962945,6.54509736,152.79,152.78,11.28142074]
[1746694963563,11.43794508,152.79,152.78,11.28142074]
[1746694966760,6.54509736,152.79,152.77,11.28142074]
[1746694967365,6.54509736,152.79,152.76,26.0]
[1746694967566,6.54509736,152.79,152.77,11.28142074]
[1746694967865,6.54450261,152.8,152.76,26.0]
[1746694968070,6.54450261,152.8,152.76,37.28142074]
[1746694968456,4.8912727,152.79,152.76,37.28142074]
[1746694969160,6.54535934,152.78,152.76,37.28142074]
[1746694969356,17.82678008,152.78,152.75,26.0]
[1746694969568,4.8912727,152.77,152.74,11.28142074]
[1746694970566,4.8912727,152.76,152.72,108.8]
[1746694970745,11.43764481,152.76,152.72,108.8]
[1746694970948,11.43764481,152.76,152.73,11.28142074]
[1746694971347,4.8912727,152.75,152.73,11.28142074]
[1746694971869,4.8912727,152.75,152.74,11.28142074]
[1746694972369,6.54548268,152.78,152.74,11.28142074]
[1746694972561,6.54501893,152.79,152.75,11.28142074]
[1746694973367,17.82643967,152.79,152.72,115.34787834]
[1746694973581,17.82643967,152.79,152.74,11.28142074]
[1746694973769,4.88809663,152.78,152.75,11.28142074]
[1746694973947,4.88809663,152.78,152.77,11.28142074]
[1746694974469,4.88809663,152.78,152.73,6.54729241]
[1746694974662,4.88809663,152.78,152.77,11.28142074]
[1746694974858,4.88809663,152.78,152.76,11.28142074]
[1746694975157,6.54495942,152.79,152.76,11.28142074]
[1746694975775,6.54450261,152.8,152.76,11.28142074]
[1746694975956,17.82592335,152.8,152.76,11.28142074]
[1746694976495,11.28142074,152.79,152.72,108.8]
[1746694976790,16.16918646,152.78,152.74,11.28142074]
[1746694976990,4.88776572,152.78,152.72,82.8]
[1746694977153,4.88776572,152.78,152.74,11.28142074]
[1746694977683,4.88776572,152.78,152.72,89.34787503]
[1746694977866,4.88776572,152.77,152.75,11.28142074]
[1746694978179,4.88776572,152.77,152.72,89.34787503]
[1746694978384,4.88776572,152.77,152.75,11.28142074]
[1746694979073,6.54590646,152.77,152.75,11.28142074]
[1746694979384,6.54590646,152.77,152.74,11.28142074]
[1746694980289,17.8273272,152.77,152.73,11.28142074]
[1746694980493,11.28142074,152.76,152.68,95.97114982]
[1746694980666,43.8273272,152.77,152.68,95.97114982]
[1746694980861,6.54590646,152.77,152.75,11.28142074]
[1746694981075,6.54535934,152.78,152.76,11.28142074]
[1746694981491,4.88789853,152.77,152.71,56.54823289]
[1746694981682,4.88789853,152.77,152.74,11.28142074]
[1746694982279,4.88789853,152.76,152.74,11.28142074]
[1746694982777,4.88789853,152.76,152.73,11.28142074]
[1746694982982,4.88789853,152.76,152.72,11.28142074]
[1746694983190,17.82806558,152.75,152.66,1.6311]
[1746694983388,11.28142074,152.74,152.69,11.28142074]
[1746694983585,16.16931927,152.74,152.69,11.28142074]
[1746694983784,4.88789853,152.74,152.66,1.6311]
[1746694983963,4.88789853,152.74,152.7,11.28142074]
[1746694984168,4.88789853,152.73,152.71,11.28142074]
[1746694984681,4.88789853,152.73,152.72,11.28142074]
[1746694985279,11.43540065,152.73,152.72,11.28142074]
[1746694985477,11.43540065,152.73,152.71,11.28142074]
[1746694986280,11.43540065,152.73,152.67,56.54991864]
[1746694986481,6.54750212,152.73,152.71,11.28142074]
[1746694987171,6.54750212,152.73,152.7,11.28142074]
[1746694987370,6.54707345,152.74,152.7,11.28142074]
[1746694987596,34.19617783,152.74,152.69,11.28142074]
[1746694987765,34.19617783,152.74,152.7,11.28142074]
[1746694989273,34.19617783,152.74,152.66,1.6311]
[1746694989274,6.54793085,152.72,152.69,11.28142074]
[1746694989668,6.54793085,152.72,152.66,84.4311]
[1746694989868,6.54793085,152.72,152.69,11.28142074]
[1746694990091,22.91775798,152.72,152.68,11.28142074]
[1746694990402,22.91775798,152.72,152.69,11.28142074]
[1746694990768,22.91775798,152.72,152.66,82.8]
[1746694990976,22.91775798,152.72,152.69,11.28142074]
[1746694991479,16.36982713,152.72,152.69,11.28142074]
[1746694991690,16.36982713,152.72,152.66,82.8]
[1746694991896,16.36982713,152.72,152.69,11.28142074]
[1746694992287,16.36982713,152.72,152.66,82.8]
[1746694992482,16.36982713,152.72,152.69,11.28142074]
[1746694992803,16.36982713,152.72,152.66,82.8]
[1746694993100,16.36982713,152.72,152.69,11.28142074]
[1746694993284,22.91420374,152.75,152.7,11.28142074]
[1746694993499,34.19562448,152.75,152.7,11.28142074]
[1746694994403,4.8780652,152.74,152.7,11.28142074]
[1746694995094,4.8780652,152.74,152.65,165.35081512]
[1746694995303,6.54750212,152.73,152.7,11.28142074]
[1746694996308,6.49750212,152.73,152.7,11.28142074]
[1746694997091,34.14767817,152.73,152.68,11.28142074]
[1746694997288,4.87931855,152.72,152.69,11.28142074]
[1746694997886,4.87931855,152.72,152.7,11.28142074]
[1746694998387,11.42767818,152.71,152.69,11.28142074]
[1746694999085,11.42767818,152.71,152.68,11.28142074]
[1746694999674,22.91775798,152.72,152.68,11.28142074]
[1746695000099,22.91775798,152.72,152.65,82.8]
[1746695000400,22.91775798,152.72,152.69,11.28142074]
[1746695000579,34.19917872,152.72,152.63,26.0]
[1746695000894,34.19917872,152.72,152.67,11.28142074]
[1746695002075,4.87739252,152.71,152.67,11.28142074]
[1746695003280,6.54921736,152.69,152.67,11.28142074]
[1746695003479,4.87739252,152.7,152.68,11.28142074]
[1746695003801,4.87739252,152.7,152.69,11.28142074]
[1746695004600,6.54707345,152.74,152.69,11.28142074]
[1746695004973,6.54707345,152.74,152.71,11.28142074]
[1746695005382,6.54707345,152.74,152.72,11.28142074]
[1746695005586,4.87654374,152.73,152.72,11.28142074]
[1746695006301,4.87654374,152.73,152.71,11.28142074]
[1746695006509,6.54707345,152.74,152.71,11.28142074]
[1746695006675,6.54707345,152.74,152.67,50.0]
[1746695006877,6.54707345,152.74,152.71,11.28142074]
[1746695007911,6.54707345,152.74,152.72,11.28142074]
[1746695008103,6.54707345,152.74,152.71,11.28142074]
[1746695008484,4.8773601,152.73,152.71,11.28142074]
[1746695008684,6.54793085,152.72,152.71,11.28142074]
[1746695009086,6.54793085,152.72,152.67,132.8]
[1746695009299,11.42529095,152.72,152.71,11.28142074]
[1746695009697,11.42529095,152.72,152.67,132.8]
[1746695009893,11.42529095,152.72,152.71,11.28142074]
[1746695010602,4.8773601,152.72,152.71,11.28142074]
[1746695013204,11.42529095,152.72,152.71,11.28142074]
[1746695013904,4.8773601,152.72,152.71,11.28142074]
[1746695015489,4.8773601,152.72,152.71,144.08142074]
[1746695016121,4.8773601,152.72,152.71,169.27942923]
[1746695016344,6.54407434,152.81,152.73,50.0]
[1746695016645,6.54407434,152.81,152.79,11.28142074]
[1746695017240,6.54407434,152.81,152.78,11.28142074]
[1746695017241,16.36018585,152.81,152.78,11.28142074]
[1746695017422,16.36018585,152.81,152.79,11.28142074]
[1746695018229,16.36018585,152.81,152.78,11.28142074]
[1746695021178,22.90426019,152.81,152.78,11.28142074]
[1746695022069,22.90426019,152.81,152.73,75.7600924]
[1746695022272,22.90426019,152.81,152.77,11.28142074]
[1746695022571,22.90426019,152.81,152.78,11.28142074]
[1746695023183,22.90426019,152.81,152.77,11.28142074]
[1746695023474,22.90426019,152.81,152.78,11.28142074]
[1746695024182,22.90426019,152.81,152.77,11.28142074]
[1746695024365,22.90426019,152.81,152.78,11.28142074]
[1746695025685,22.90426019,152.81,152.73,158.5600924]
[1746695025864,22.90426019,152.81,152.78,11.28142074]
[1746695026067,16.36018585,152.81,152.78,11.28142074]
[1746695029188,4.88331083,152.8,152.78,11.28142074]
[1746695029984,6.54493095,152.79,152.78,11.28142074]
[1746695030370,11.42824178,152.79,152.78,11.28142074]
[1746695031190,11.42824178,152.79,152.77,11.28142074]
[1746695031416,22.90426019,152.81,152.77,11.28142074]
[1746695031709,34.18568093,152.81,152.77,11.28142074]
[1746695032505,6.54493095,152.79,152.77,11.28142074]
[1746695035116,6.54450261,152.8,152.77,11.28142074]
[1746695035493,4.87910666,152.79,152.77,11.28142074]
[1746695036313,6.54450261,152.8,152.77,11.28142074]
[1746695038013,6.54535934,152.78,152.77,11.28142074]
[1746695040909,6.54450261,152.8,152.77,11.28142074]
[1746695041114,4.87754818,152.79,152.77,11.28142074]
[1746695041306,4.18674873,152.79,152.77,11.28142074]
[1746695041507,4.18674873,152.79,152.76,11.28142074]
[1746695041897,4.18674873,152.79,152.75,11.28142074]
[1746695042529,34.18717989,152.8,152.75,11.28142074]
[1746695044195,34.18717989,152.8,152.73,61.19530247]
[1746695044196,22.90575915,152.8,152.77,11.28142074]
[1746695044423,22.90575915,152.8,152.76,11.28142074]
[1746695044791,34.18717989,152.8,152.75,11.28142074]
[1746695044997,11.28142074,152.79,152.74,11.28142074]
[1746695045204,11.28142074,152.79,152.75,11.28142074]
[1746695045722,6.54535934,152.78,152.75,11.28142074]
[1746695045915,6.54535934,152.78,152.73,53.26380247]
[1746695046399,6.54535934,152.78,152.76,11.28142074]
[1746695047420,6.54535934,152.78,152.73,53.26380247]
[1746695047718,6.54535934,152.78,152.76,11.28142074]
[1746695047923,6.54493095,152.79,152.76,11.28142074]
[1746695050004,22.90575915,152.8,152.76,11.28142074]
[1746695050717,22.90575915,152.8,152.77,11.28142074]
[1746695050924,22.90575915,152.8,152.73,71.09258131]
[1746695051127,22.90575915,152.8,152.76,11.28142074]
[1746695051920,34.18717989,152.8,152.76,11.28142074]
[1746695052126,11.28142074,152.79,152.74,11.28142074]
[1746695053416,11.28142074,152.79,152.73,3.26380247]
[1746695053622,11.28142074,152.79,152.74,11.28142074]
[1746695054112,6.54578778,152.77,152.74,11.28142074]
[1746695055227,11.4372995,152.78,152.75,11.28142074]
[1746695055426,11.4372995,152.78,152.76,11.28142074]
[1746695055427,4.89178173,152.77,152.76,11.28142074]
[1746695056333,4.89178173,152.77,152.75,11.28142074]
[1746695056628,4.89178173,152.76,152.75,11.28142074]
[1746695057126,4.89178173,152.76,152.74,11.28142074]
[1746695057331,4.89178173,152.76,152.73,53.3262327]
[1746695057626,4.89178173,152.75,152.73,53.3262327]
[1746695057827,4.89178173,152.75,152.72,82.8]
[1746695058143,4.89178173,152.75,152.73,11.28142074]
[1746695058431,4.89178173,152.74,152.73,11.28142074]
[1746695058803,4.89178173,152.74,152.72,82.8]
[1746695058804,4.89178173,152.74,152.72,94.08142074]
[1746695059528,6.54678071,152.75,152.72,94.08142074]
[1746695060119,6.54678071,152.75,152.72,82.8]
[1746695060428,17.82820145,152.75,152.68,132.8]
[1746695060631,34.19481356,152.75,152.7,11.28142074]
[1746695061618,4.90144252,152.74,152.7,11.28142074]
[1746695062534,4.90144252,152.73,152.7,11.28142074]